Cogmind - Beta 12 *** ADVENTURER MODE // 2023.12.03 @ 18:22:27 Player: Occam Result: Self-destructed Performance ------------- Evolutions (1) 500 Regions Visited (5) 1000 Robots Destroyed (42) 210 Value Destroyed (728) 728 Prototype IDs (27) 540 Alien Tech Used (0) 0 Bonus (675) 675 TOTAL SCORE: 3653 Bonus ------- High Alert Combat Kills 8 Follower Combat Kills 381 Aligned with FarCom 300 Friendly Fire -14 Cogmind --------- Core Integrity 212/400 Matter 285/300 Energy 170/170 System Corruption 8% Temperature Cool (0) Movement Treading (160) Location -9/Exiles Parts ------- > --- POWER (1) -------- Makeshift Power Source > --- PROPULSION (2) --- Light Treads Light Treads > --- UTILITY (4) ------ Cooling System Large Storage Unit Weight Redist. System Improved Targeting Computer > --- WEAPON (2) ------- Beam Rifle Beam Rifle > --- INVENTORY (15) --- Makeshift Power Source Light Treads Light Treads Wheel Compact Wheel Cooling System High-capacity Matter Pod (200) Advanced Transmission Jammer Beam Rifle High-powered Shotgun High-powered Shotgun Rocket Launcher Katana Peak State ------------ > --- POWER ------------ Improved Ion Engine > --- PROPULSION ------- Light Treads Wheel > --- UTILITY ---------- Small Storage Unit Medium Armor Plating Hacking Suite System Shield > --- WEAPON ----------- Improved Assault Rifle Improved Assault Rifle > --- INVENTORY -------- Ion Engine Light Treads Light Treads Compact Wheel Improved Heat Sink High-powered Shotgun High-powered Shotgun Hammer [Rating: 20] Favorites ----------- Power Improved Ion Engine Engine Improved Ion Engine Propulsion Light Treads Treads Light Treads Wheel Wheel Utility Medium Armor Plating Device Cooling System Storage Large Storage Unit Processor Improved Targeting Computer Hackware System Shield Protection Medium Armor Plating Weapon Beam Rifle Energy Gun Beam Rifle Ballistic Gun High-powered Shotgun Launcher Rocket Launcher Build | -11 -10 -10 -9 -9 -9 ------- Run | Jun Mat Min Mat Min Exi Slots Evolved 2 | . . . 2 . . Power . | . . . . . . Propulsion . | . . . . . . Utility 2 | . . . 2 . . Weapon . | . . . . . . Parts Attached 54 | 8 . . 25 2 19 Power 5 | 1 . . 2 . 2 Engine 5 | 1 . . 2 . 2 Core . | . . . . . . Reactor . | . . . . . . Propulsion 10 | 3 . . 3 . 4 Treads 6 | 1 . . 2 . 3 Leg . | . . . . . . Wheel 4 | 2 . . 1 . 1 Hover . | . . . . . . Flight . | . . . . . . Utility 18 | 2 . . 12 . 4 Device 5 | 1 . . 3 . 1 Storage 5 | 1 . . 3 . 1 Processor 1 | . . . 1 . . Hackware 2 | . . . 2 . . Protection 5 | . . . 3 . 2 Artifact . | . . . . . . Weapon 21 | 2 . . 8 2 9 Energy Gun 9 | 2 . . 4 1 2 Energy Cannon . | . . . . . . Ballistic Gun 8 | . . . 4 . 4 Ballistic Cannon . | . . . . . . Launcher 4 | . . . . 1 3 Special Weapon . | . . . . . . Impact Weapon . | . . . . . . Slashing Weapon . | . . . . . . Piercing Weapon . | . . . . . . Special Melee Weapon . | . . . . . . Unidentified Prototypes 1 | . . . 1 . . Parts Lost 6 | . . . . . 6 Power 2 | . . . . . 2 Propulsion 1 | . . . . . 1 Utility 3 | . . . . . 3 Weapon . | . . . . . . Highest Loss Streak 3 | . . . . . 3 To Critical Strikes . | . . . . . . Average Slot Usage (%) 98 | . 100 100 99 100 98 Engine 11 | . 14 14 10 11 10 Treads 12 | . 14 14 11 11 14 Wheel 9 | . 14 14 10 11 7 Device 9 | . 14 14 4 11 11 Storage 11 | . 14 14 11 11 11 Processor 5 | . . . 1 11 11 Hackware 7 | . . . 17 . . Protection 7 | . . . 8 11 8 Energy Gun 18 | . 28 28 18 21 15 Ballistic Gun 3 | . . . 3 . 5 Naked Turns . | . . . . . . Heaviest Build 102 | 15 15 15 102 102 102 Greatest Support 46 | 16 10 10 10 10 46 Greatest Overweight (x) 10 | 1 1 1 10 10 10 Average Overweight (x) 2 | . 1 1 3 10 2 Largest Inventory Capacity 25 | 8 8 8 25 25 25 Average Capacity 16 | 6 8 8 15 25 18 Most Carried 25 | 2 5 8 24 25 25 Average Carried 14 | 1 2 7 14 24 17 Final Capacity 25 | 8 8 8 25 25 15 Final Carried 25 | 2 5 8 24 25 13 Class Distribution -------------------- 64% | Mutant 35% | Hacker-Mutant Dominant Class ---------------- Mutant | -10/Materials Mutant | -10/Mines Hacker-Mutant | -9/Materials Mutant | -9/Mines Mutant | -9/Exiles Resources | -11 -10 -10 -9 -9 -9 ----------- Run | Jun Mat Min Mat Min Exi Matter Collected 1766 | 270 99 61 371 53 912 Remotely . | . . . . . . Salvage Created 1468 | 20 238 168 689 52 301 Parts 78 | 3 12 7 42 3 11 Haulers Intercepted 3 | . . . 3 . . Recyclers Shooed . | . . . . . . Parts Field Recycled . | . . . . . . Retrieved Matter . | . . . . . . Parts Self-Destructed . | . . . . . . Prevented . | . . . . . . Kills | -11 -10 -10 -9 -9 -9 ------- Run | Jun Mat Min Mat Min Exi Combat Hostiles Destroyed 28 | . 8 4 11 2 3 Guns 24 | . 8 3 10 . 3 AOE 2 | . . . . 2 . Classes Destroyed 12 | 1 2 1 4 1 3 Worker 2 | . . 2 . . . Tunneler 2 | 1 . 1 . . . Hauler 3 | . . . 3 . . Recycler 2 | . . . 2 . . Turret 1 | . . . . . 1 Watcher 2 | . . . 2 . . Swarmer 12 | . 4 3 5 . . Grunt 11 | . 4 1 5 1 . Duelist 1 | . . . . 1 . Sentry 1 | . . . 1 . . Zionite 2 | . . . . . 2 Assembled 2 | . . . . . 2 Best Kill Streak 3 | 1 2 3 3 2 3 Combat Bots Only 3 | . 2 3 3 2 2 Max Kills in Single Turn 2 | 1 1 1 2 1 1 Gunslinging 1 | . . . 1 . . Exploded 1 | . . . . 1 . Melee . | . . . . . . Uniques/NPCs Destroyed 4 | . . . . . 4 8R-AWN (-9/Exiles) EX-HEX (-9/Exiles) EX-BIN (-9/Exiles) EX-DEC (-9/Exiles) Combat | -11 -10 -10 -9 -9 -9 -------- Run | Jun Mat Min Mat Min Exi Damage Taken 1745 | . 80 60 359 41 1205 Core 242 | . 36 18 60 . 128 Absorbed by Shields . | . . . . . . Regen/Repaired (Parts) 115 | . . . 115 . . Core Remaining (%) 89 | 100 . 78 . . . Volleys Fired 149 | 1 14 13 40 3 78 Largest 2 | 2 2 2 2 1 2 Hottest 112 | 100 100 100 112 33 112 Shots Fired 275 | 2 28 26 80 3 136 Gun 251 | 2 28 26 80 . 115 Cannon . | . . . . . . Launcher 24 | . . . . 3 21 Special . | . . . . . . Kinetic 96 | . . . 28 . 68 Thermal 155 | 2 28 26 52 . 47 Explosive 24 | . . . . 3 21 Electromagnetic . | . . . . . . Robot Hit Streak 32 | 2 16 11 19 8 32 Robot Miss Streak 3 | . 1 1 2 . 3 Penetration Max . | . . . . . . Secondary Targets 4 | . . . 2 . 2 Max Gunslinging Chain 1 | . . . 1 . 1 Shots Hit Robots 216 | 2 23 18 65 3 105 Core Hits 88 | 1 13 7 24 2 41 Critical Kills . | . . . . . . Critical Parts Destroyed 1 | . . . 1 . . Critical Strikes 14 | . 1 1 4 . 8 Burn 13 | . 1 1 3 . 8 Destroy 1 | . . . 1 . . Melee Attacks . | . . . . . . Impact . | . . . . . . Slashing . | . . . . . . Piercing . | . . . . . . Sneak Attacks . | . . . . . . Combat Hostiles . | . . . . . . Follow-up Attacks . | . . . . . . Damage Inflicted 4339 | 25 300 236 1065 276 2437 Guns 3647 | 25 300 236 1065 . 2021 Cannons . | . . . . . . Explosions 692 | . . . . 276 416 Melee . | . . . . . . Ramming . | . . . . . . Kinetic 1794 | . . . 405 . 1389 Thermal 1853 | 25 300 236 660 . 632 Explosive 692 | . . . . 276 416 Electromagnetic . | . . . . . . Impact . | . . . . . . Slashing . | . . . . . . Piercing . | . . . . . . Highest Corruption 8 | . . . 1 1 8 Average Corruption 1 | . . . 1 1 2 Corruption Purged . | . . . . . . Corruption Blocked . | . . . . . . Effects 45 | . . . 12 3 30 Message Errors 14 | . . . 3 2 9 Matter Fused 12 | . . . 4 . 8 Heat Flow Errors 6 | . . . 3 . 3 Energy Discharges 4 | . . . . . 4 Parts Fused 1 | . . . . 1 . Data Loss (minor) 5 | . . . 2 . 3 Data Loss (major) 1 | . . . . . 1 Misfires 1 | . . . . . 1 Weapon Failures 1 | . . . . . 1 Overload Shots . | . . . . . . Overflow Damage 2 | . . . . . 2 Projectiles . | . . . . . . Explosions 2 | . . . . . 2 Melee . | . . . . . . Knockbacks . | . . . . . . Impact . | . . . . . . Kinetic . | . . . . . . Secondary . | . . . . . . Self-Inflicted Damage . | . . . . . . Shots . | . . . . . . Rammed . | . . . . . . Targets Rammed . | . . . . . . Kicked . | . . . . . . Crushed . | . . . . . . Highest Temperature 225 | 39 177 195 225 . 195 Average Temperature 65 | 24 64 68 62 . 94 Received Heat Transfer 271 | . 27 18 156 30 40 Siege Activations . | . . . . . . Robots Corrupted . | . . . . . . Combat Hostiles . | . . . . . . Parts Fried . | . . . . . . Impact Corruptions . | . . . . . . Robots Melted 4 | . . 1 1 . 2 Combat Hostiles 2 | . . 1 1 . . Parts Melted 48 | . 3 3 4 . 38 Heat Transferred 5772 | 74 925 740 1850 . 2183 Parts Sabotaged . | . . . . . . Parts Stolen . | . . . . . . Parts Stripped . | . . . . . . Power Chain Reactions . | . . . . . . Missiles Intercepted . | . . . . . . Alert | -11 -10 -10 -9 -9 -9 ------- Run | Jun Mat Min Mat Min Exi Peak Influence 439 | 5 368 275 439 130 . Initial 121 | . 2 121 90 . . Average 143 | . 173 179 142 104 . Maximum Alert Level 2 | . 1 1 2 . . Low Security (%) 70 | 100 60 49 70 100 . Level 1 27 | . 39 50 26 . . Level 2 2 | . . . 3 . . Level 3 . | . . . . . . Level 4 . | . . . . . . Level 5 . | . . . . . . High Security . | . . . . . . Max Security . | . . . . . . Squads Dispatched 5 | . 2 1 2 . . Investigation 4 | . 2 1 1 . . Extermination . | . . . . . . Reinforcement 1 | . . . 1 . . Assault . | . . . . . . Garrison . | . . . . . . Intercept . | . . . . . . Searches Triggered . | . . . . . . Construction Impeded . | . . . . . . Haulers Reinforced . | . . . . . . Active Scanning Responses . | . . . . . . Cargo Convoy Interrupts . | . . . . . . Stealth | -11 -10 -10 -9 -9 -9 --------- Run | Jun Mat Min Mat Min Exi Distress Signals 1 | . 1 . . . . Communications Jammed . | . . . . . . Distress Signals . | . . . . . . Times Spotted 100 | . 12 5 36 4 43 Peak Tracking Total 9 | . 5 2 5 3 9 Tactical Retreats 15 | . 1 . . . 14 Traps | -11 -10 -10 -9 -9 -9 ------- Run | Jun Mat Min Mat Min Exi Traps Triggered 1 | . . . 1 . . Indirectly . | . . . . . . Trap Hack Attempts . | . . . . . . Triggered . | . . . . . . Disarmed . | . . . . . . Reprogrammed . | . . . . . . Reused . | . . . . . . Traps Extracted . | . . . . . . Installed . | . . . . . . Triggered . | . . . . . . Exploded 3 | . . . . . 3 Machines | -11 -10 -10 -9 -9 -9 ---------- Run | Jun Mat Min Mat Min Exi Machines Disabled 6 | . . . . . 6 Max in Single Turn 1 | . . . . . 1 Machines Repaired . | . . . . . . Machines Sabotaged . | . . . . . . Overloaded Fab Kills . | . . . . . . Hacking | -11 -10 -10 -9 -9 -9 --------- Run | Jun Mat Min Mat Min Exi Machines Accessed 25 | . 7 1 15 . 2 Terminals 16 | . 5 . 11 . . Fabricators . | . . . . . . Repair Stations 1 | . . . 1 . . Recycling Units 4 | . 2 . 2 . . Scanalyzers 1 | . . . 1 . . Garrison Access . | . . . . . . Total Hacks 99 | . 29 1 67 . 2 Successful 74 | . 22 1 49 . 2 Failed 24 | . 7 . 17 . . Catastrophic 1 | . . . 1 . . Database Lockouts 1 | . . . 1 . . Manual 59 | . 24 . 34 . 1 Terminals 74 | . 25 . 49 . . Fabricators . | . . . . . . Repair Stations 8 | . . . 8 . . Recycling Units 11 | . 4 . 7 . . Scanalyzers 3 | . . . 3 . . Garrison Access . | . . . . . . Terminal Hacks 44 | . 15 1 26 . 2 Record 4 | . . . 3 . 1 Part Schematic 5 | . 1 . 4 . . Robot Analysis 7 | . 4 . 3 . . Prototype ID Bank 2 | . 1 . 1 . . Open Door 1 | . . 1 . . . Branch Access Points 3 | . 2 . 1 . . Terminal Index 2 | . 1 . 1 . . Repair Station Index 1 | . . . 1 . . Recycling Unit Index 1 | . . . 1 . . Alert Level 3 | . 1 . 2 . . Locate Traps 2 | . 1 . 1 . . Transport Status 1 | . . . 1 . . Recall Investigation 1 | . . . 1 . . Hauler Manifests 3 | . 1 . 2 . . Registered Components 3 | . 2 . 1 . . Registered Prototypes 2 | . 1 . 1 . . Zone Layout 2 | . . . 2 . . EX-Prototype ID Bank 1 | . . . . . 1 Fabricator Hacks . | . . . . . . Repair Station Hacks 8 | . . . 8 . . Scan Component 4 | . . . 4 . . Repair 4 | . . . 4 . . Recycling Unit Hacks 4 | . 1 . 3 . . Report Inventory 2 | . 1 . 1 . . Retrieve Components 2 | . . . 2 . . Scanalyzer 2 | . . . 2 . . Insert Component 1 | . . . 1 . . Analyze 1 | . . . 1 . . Garrison Access Hacks . | . . . . . . Unauthorized Hacks 16 | . 6 . 10 . . Terminals 9 | . 3 . 6 . . Assimilate 2 | . . . 2 . . Botnet 6 | . 3 . 3 . . Operators 1 | . . . 1 . . Fabricators . | . . . . . . Repair Stations . | . . . . . . Recycling Units 6 | . 3 . 3 . . Reject 1 | . . . 1 . . Recyclers 2 | . 1 . 1 . . Tunnel 3 | . 2 . 1 . . Scanalyzers 1 | . . . 1 . . Researchers 1 | . . . 1 . . Garrison Access . | . . . . . . Data Cores Recovered 2 | . . . 2 . . Used 1 | . . . 1 . . Hacking Detections 16 | . 5 . 11 . . Full Trace Events 1 | . . . 1 . . Feedback Events . | . . . . . . Feedback Blocked . | . . . . . . Robot Schematics Acquired . | . . . . . . Robots Built . | . . . . . . Authchips . | . . . . . . Time . | . . . . . . Total Robot Build Rating . | . . . . . . Part Schematics Acquired 6 | . 1 . 5 . . Parts Built . | . . . . . . Authchips . | . . . . . . Time . | . . . . . . Total Part Build Rating . | . . . . . . Parts Repaired 4 | . . . 4 . . Time 143 | . . . 143 . . Parts Recycled . | . . . . . . Recycled Matter . | . . . . . . Retrieved Matter . | . . . . . . Retrieved Components 20 | . . . 20 . . Parts Scanalyzed 1 | . . . 1 . . Part Schematics Acquired 1 | . . . 1 . . Parts Damaged 1 | . . . 1 . . Bothacking | -11 -10 -10 -9 -9 -9 ------------ Run | Jun Mat Min Mat Min Exi Used RIF Installer . | . . . . . . Robots Hacked . | . . . . . . Non-combat . | . . . . . . Combat . | . . . . . . Robot Hacks Applied . | . . . . . . Relay Couplers Released . | . . . . . . Fabnet Peak Effective % . | . . . . . . Robots Rewired . | . . . . . . Allies Hacked . | . . . . . . Hacks Repelled . | . . . . . . Allies | -11 -10 -10 -9 -9 -9 -------- Run | Jun Mat Min Mat Min Exi Total Allies 4 | . . 4 . . . Largest Group 3 | . . 3 3 1 1 Highest-Rated Group 40 | . . 40 40 16 16 Highest-Rated Ally 31 | . . 31 16 16 16 Total Orders 3 | . . . 2 . 1 STAY 2 | . . . 1 . 1 FOLLOW 1 | . . . 1 . . Ally Attacks 77 | . . 4 44 8 21 Total Damage 1675 | . . 58 470 116 1031 Kills 20 | . . 1 12 3 4 Allies Corrupted . | . . . . . . Allies Melted . | . . . . . . Turrets Deployed 1 | . . . . . 1 Intel | -11 -10 -10 -9 -9 -9 ------- Run | Jun Mat Min Mat Min Exi Robot Analysis Total 7 | . 4 . 3 . . Derelict Logs Recovered 4 | . . 2 . 2 . Drone Launches . | . . . . . . Drone Recoveries . | . . . . . . Exploration | -11 -10 -10 -9 -9 -9 ------------- Run | Jun Mat Min Mat Min Exi Turns Passed 5361 | 60 262 377 2220 314 2128 Spaces Moved 3240 | 39 201 334 1377 133 1156 Core 3 | 3 . . . . . Treads 604 | . . . . . 604 Legs . | . . . . . . Wheels 2633 | 36 201 334 1377 133 552 Hover . | . . . . . . Flight . | . . . . . . Fastest Speed 50 | 50 95 95 95 230 105 Average Speed 139 | 90 95 95 134 230 158 Slowest Speed 240 | 100 95 95 230 230 240 Overloaded Moves . | . . . . . . Propulsion Burnouts . | . . . . . . Robots Hopped 3 | . . . . . 3 Cave-ins Triggered . | . . . . . . Exploration Rate (%) 51 | 4 40 54 87 32 92 Regions Visited 5 Branch Regions 3 Pre-discovered Areas 5 | . 2 1 1 1 . Known Exits Taken 2 | . 1 . 1 . . Unknown Exits Taken 3 | 1 . 1 . 1 . Scrap Searched 1 | . . 1 . . . Spaces Dug . | . . . . . . Terrain Destroyed 21 | . . . . 10 11 Melee . | . . . . . . Projectile . | . . . . . . AOE 21 | . . . . 10 11 Terrain Rammed . | . . . . . . Walls Destroyed . | . . . . . . Machines Disabled . | . . . . . . Actions | -11 -10 -10 -9 -9 -9 --------- Run | Jun Mat Min Mat Min Exi Total 3798 | 57 243 368 1674 138 1318 Wait 274 | 9 26 17 183 . 39 Move 3229 | 38 200 333 1376 132 1150 Hop 3 | . . . . . 3 Pick Up 44 | 1 3 4 25 1 10 Fast Attach 24 | 7 . . 15 . 2 Attach 8 | . . . 3 . 5 Detach 6 | . . . 5 . 1 Swap 22 | 1 . . 7 2 12 Drop 39 | . . 1 20 . 18 Fire 149 | 1 14 13 40 3 78 Melee . | . . . . . . Ram . | . . . . . . Kick . | . . . . . . Crush . | . . . . . . Escape Stasis . | . . . . . . Rewire . | . . . . . . Trap . | . . . . . . Miscellaneous . | . . . . . . Route ------- -11/Junkyard -10/Materials (discovered 2 exits: *Min x2) -10/Mines -9/Materials (discovered 4 exits: [*Mat x3] / *Min) -9/Mines (discovered 2 exits: [*Mat] / *Exi) -9/Exiles (discovered 1 exit: [*Min]) History --------- Turn | Location | Event 31 | -11/Junkyard | Discovered new exit (range 15) 61 | -11/Junkyard | Entered Materials 140 | -10/Materials | Identified exit to Mines 307 | -10/Materials | Build established: Mutant 323 | -10/Materials | Entered Mines 326 | -10/Mines | Received a Mining Laser from a helpful Derelict 554 | -10/Mines | Met a Derelict shopkeep closing up shop 557 | -10/Mines | Learned location of Zion (-6) 596 | -10/Mines | Discovered new exit (range 10) 609 | -10/Mines | Learned Materials stockpile data 637 | -10/Mines | Assisted by bots powering up and referring to "LRC-V3" 660 | -10/Mines | Assembled infested the area 700 | -10/Mines | Entered Materials 700 | -9/Materials | Accompanied by 3 allies 700 | -9/Materials | Evolved 2 slots: Utility x2 858 | -9/Materials | Identified exit to Mines 923 | -9/Materials | Discovered new exit (range 16) 1018 | -9/Materials | Central database locked down 1026 | -9/Materials | Build established: Hacker-Mutant 1577 | -9/Materials | Discovered new exit (range 16) 1705 | -9/Materials | Repaired Broken Imp. Heat Sink 1738 | -9/Materials | Repaired Med. Armor Plating 1766 | -9/Materials | Repaired Wheel 1799 | -9/Materials | Repaired Imp. Ion Engine 2188 | -9/Materials | Discovered new exit (range 16) 2902 | -9/Materials | Build established: Mutant 2920 | -9/Materials | Entered Mines 2920 | -9/Mines | Accompanied by 1 ally 3002 | -9/Mines | YI-UF0 nonchalantly dropped a Grenade Launcher on the ground 3055 | -9/Mines | Learned 2 Materials zone layouts 3082 | -9/Mines | Discovered new exit (range 5) 3225 | -9/Mines | Deemed a non-threat by the Exiles lab entrance 3225 | -9/Mines | Discovered new exit (range 5) 3234 | -9/Mines | Entered Exiles 3234 | -9/Exiles | Accompanied by 1 ally 3292 | -9/Exiles | Met 8R-AWN 3329 | -9/Exiles | Met EX-HEX 3402 | -9/Exiles | Met EX-BIN 3451 | -9/Exiles | Aligned with FarCom system 3453 | -9/Exiles | Given EX-Vault access code 3529 | -9/Exiles | Opened EX-Vault 3567 | -9/Exiles | Warned to stay clear of 0b10 Research branches 3606 | -9/Exiles | Met EX-DEC 3649 | -9/Exiles | Visited The Gauntlet 3800 | -9/Exiles | Discovered new exit (range 14) 4438 | -9/Exiles | Attacked by the Exiles 4613 | -9/Exiles | Destroyed 8R-AWN 4881 | -9/Exiles | Destroyed EX-HEX 4921 | -9/Exiles | Lost 3 parts (1p1n1u) 4929 | -9/Exiles | Destroyed EX-BIN 4944 | -9/Exiles | Destroyed EX-DEC 4960 | -9/Exiles | Found Deploy-a-Sentry 4963 | -9/Exiles | DAS Turret deployed 5362 | -9/Exiles | Self-destructed Last Messages --------------- 05121_ Acquired Mak. Power Source. 05134_ System corrupted: Matter fused (-9). 05152_ System corrupted: Heat flow error (+233). 05163_ A-02 Transporter destroyed. 05166_ A-02 Transporter suffers critical hit (Burn). 05166_ Ion Engine melted. 05166_ A-02 Transporter destroyed. 05183_ Acquired Unknown Device. 05183_ Identified Weight Redist. System. 05185_ Acquired 52 matter. 05186_ Acquired 14 matter. 05194_ ZHGELRBXW7QIQEJJMLJO F6VN: 05233_ System corrupted: Matter fused (-9). 05247_ Destroyed Ion Engine. 05249_ Destroyed Aluminum Leg. 05249_ 5L-KAT destroyed. 05266_ System corrupted: Matter fused (-6). 05282_ Connecting with EX-Message Board... 05295_ System corrupted: Component data lost. 05344_ System corrupted: Energy discharge (-59). Map ----- +----------------------------------------------------+ | | | ??????????????????????????????????????????? | | ??????????????????????????????????????????? | | ??????????????????????????????????????????? | | ??????????????????????????????????????????? | | ??????????????????????????????????????????? | | ??????????????????????????????????????????? | | ??????????????????????????????????????????? | | ??????????????????????????????????????????? | | ??????????????????????????????????????????? | | ??????????????????????????????????????????? | | ??????????????????????????????????????????? | | ??????????????????????????????????????????? | | ??????????????????????????????????????????? | | ??????????????????????????????????????????? | | ??????????????????????????????????????????? | | ??????????????????????????????????????????? | | ????????????????#####?????????????????????? | | ???????????????## ##????????????????????? | | ???????????????# #????????????????????? | | ???????????????# < !#????????????????????? | | ???????????????# /!###??????????????????? | | ???????????????# !!!! #??????????????????? | | ???????????????# !!!##??????????????????? | | ???????????????## ] #???????????????????? | | ????????????????# @ ##??????????????????? | | ????????????????## #????????????####### | | ?????????????????# #######??????#!!! "# | | ?????????????????# #""##?????# "# | | ?????????????????## #?????# "# | | ??????????????????##" ##???## ""# | | ??????????????????#"" #####" " # | | ??????????????????#### ##" "# | | ?????????????????????## #"" ### | | ??????????????????????#"## #?? | | ??????????????????????####### ##? | | ????????????????????????????### "## | | ??????????????????????########"= # | | ??????????????????????# """"" ! | | ??????????????????????#! [ "" | | ??????????????????????#! ! " " | | ??????????????????????#! ""##" | | ??????????????????????# ! " """ ###"# | | ??????????????????????######"""# ##?#### | | ?????????????????????????# ####?????### | | ????????????????????????# ## #??????????# | | ??????????????????????? #? ##??????????? | | ????????????????????? # #??#????????????? | | ???????????????????? #?##????????????????? | | ????????????????????#?????????????????????? | +----------------------------------------------------+ Best States ------------- Heat Dissipation 50 Energy Generation 15 Energy Capacity 265 Matter Stores 300 Matter Capacity 300 Sight Range 16 Terrain Scan Density 10 ECM Strength 1 Additional Mass Support 6 Armor Coverage 225 Resistance: KI 20 Resistance: TH 20 Resistance: EX 20 Resistance: EM 20 Resistance: I 20 Resistance: S 20 Resistance: P 20 Evasion (%) 44 Targeting Accuracy 6 Recoil Reduction 2 Offensive Hacking 20 Defensive Hacking 10 Item Schematics ----------------- Huge Storage Unit | -10/Materials | Hacked Cooling System | -9/Materials | Hacked Hcp. Storage Unit | -9/Materials | Hacked Med. Armor Plating | -9/Materials | Hacked Imp. Treads | -9/Materials | Hacked Imp. Heat Sink | -9/Materials | Scanalyzed Robot Schematics ------------------ None Fabricated ------------ Nothing Alien Tech Used ----------------- None Achievements -------------- None Challenges ------------ None Game ------ Seed MatterStasisChip Manual? 0 Play Time 00:58:59 Cumulative 135.7 hours Start 2023.12.03 @ 15:37:41 End 2023.12.03 @ 18:22:27 Sessions 3 Manual Loads 0 Difficulty Adventurer Special Mode None Game No. 110 Rogue 0 Adventurer 110 Explorer 0 Win Type - Total 1 Types 1/0/0/0/0/0/0/0/0 Lore% 57 Gallery% 56 Achievement% 48 Wizard Run 0 Options --------- ASCII 0 Keyboard 0 Movement Mouse Keybinds 0 Fullscreen 2 Font 20/SmallcapsGlow Map View 66x50 Tactical HUD 1 Map Filters NONE Filters NONE Steam X RUN: bae051f4-d813-42eb-9507-4ae88ec6d52d